[Event "GrandPrix_30.05"]
[Site "Chess.com"]
[Date "2020.05.30"]
[Round "3"]
[White "Yaroslav_Remizov"]
[Black "Fandorine"]
[Result "0-1"]
[WhiteElo "2294"]
[BlackElo "2545"]
[TimeControl "600+2"]
[EndTime "9:28:38 PDT"]
[Termination "Fandorine won by resignation"]

1. e4 {[%clk 0:10:01.9]} 1... e5 {[%clk 0:09:59]} 2. Nf3 {[%clk 0:09:57.7]} 2...
Nc6 {[%clk 0:10:00.4]} 3. Bc4 {[%clk 0:09:45.6]} 3... Bc5 {[%clk 0:09:58]} 4. c3
{[%clk 0:09:46.7]} 4... Nf6 {[%clk 0:09:58.8]} 5. d3 {[%clk 0:09:45.3]} 5... d6
{[%clk 0:09:58.8]} 6. Nbd2 {[%clk 0:09:43.1]} 6... a6 {[%clk 0:09:57.9]} 7. Nf1
{[%clk 0:09:39.9]} 7... h6 {[%clk 0:09:53.4]} 8. Ng3 {[%clk 0:09:27.4]} 8... Be6
{[%clk 0:09:08.3]} 9. Bb3 {[%clk 0:08:27.1]} 9... Ba7 {[%clk 0:09:06.7]} 10. h3
{[%clk 0:08:04.6]} 10... Qd7 {[%clk 0:09:06.9]} 11. Be3 {[%clk 0:07:59.9]} 11...
Bxe3 {[%clk 0:08:49.5]} 12. fxe3 {[%clk 0:08:01.8]} 12... d5 {[%clk 0:08:35.4]}
13. exd5 {[%clk 0:06:59.9]} 13... Bxd5 {[%clk 0:08:13.1]} 14. O-O {[%clk
0:06:22.6]} 14... O-O-O {[%clk 0:07:39.8]} 15. d4 {[%clk 0:06:19.6]} 15... Rhe8
{[%clk 0:07:05.7]} 16. Bxd5 {[%clk 0:05:09.9]} 16... Nxd5 {[%clk 0:06:57.3]} 17.
Qd3 {[%clk 0:04:16.5]} 17... f5 {[%clk 0:06:32.3]} 18. dxe5 {[%clk 0:02:46.3]}
18... Nxe5 {[%clk 0:02:24.7]} 19. Nxe5 {[%clk 0:02:45.1]} 19... Rxe5 {[%clk
0:02:26.6]} 20. Nxf5 {[%clk 0:02:45.6]} 20... Nxe3 {[%clk 0:02:25.2]} 21. Qxd7+
{[%clk 0:02:45.7]} 21... Rxd7 {[%clk 0:02:23.1]} 22. Nxe3 {[%clk 0:02:46.5]}
22... Rxe3 {[%clk 0:02:24.9]} 23. Rf8+ {[%clk 0:02:46.5]} 23... Rd8 {[%clk
0:02:25.7]} 24. Rxd8+ {[%clk 0:02:39.1]} 24... Kxd8 {[%clk 0:02:27.6]} 25. Kf2
{[%clk 0:02:39.8]} 25... Re5 {[%clk 0:02:16.8]} 26. Re1 {[%clk 0:02:23.9]} 26...
Rxe1 {[%clk 0:02:16.1]} 27. Kxe1 {[%clk 0:02:25.8]} 27... Ke7 {[%clk 0:02:17.9]}
28. Kf2 {[%clk 0:02:14.1]} 28... Ke6 {[%clk 0:02:19.8]} 29. Kf3 {[%clk 0:01:44]}
29... Ke5 {[%clk 0:02:15.9]} 30. g3 {[%clk 0:01:41.6]} 30... a5 {[%clk
0:02:01.4]} 31. b3 {[%clk 0:01:00.3]} 31... b5 {[%clk 0:01:31.4]} 32. a3 {[%clk
0:00:37.3]} 32... h5 {[%clk 0:01:02.2]} 33. Ke3 {[%clk 0:00:22]} 33... g5 {[%clk
0:00:51.4]} 34. Kd3 {[%clk 0:00:08]} 34... h4 {[%clk 0:00:41]} 35. Ke3 {[%clk
0:00:02.8]} 35... hxg3 {[%clk 0:00:18.8]} 36. Kf3 {[%clk 0:00:03.4]} 36... g2
{[%clk 0:00:19.4]} 37. Kxg2 {[%clk 0:00:04.5]} 37... Ke4 {[%clk 0:00:20.9]} 38.
Kg3 {[%clk 0:00:04.4]} 38... Kd3 {[%clk 0:00:22.4]} 39. Kg4 {[%clk 0:00:03.7]}
39... Kxc3 {[%clk 0:00:23.8]} 40. Kxg5 {[%clk 0:00:04.9]} 40... Kxb3 {[%clk
0:00:23.8]} 41. h4 {[%clk 0:00:06.1]} 41... c5 {[%clk 0:00:25.2]} 42. h5 {[%clk
0:00:07.2]} 42... c4 {[%clk 0:00:26.7]} 43. h6 {[%clk 0:00:08.4]} 43... c3
{[%clk 0:00:28.3]} 44. h7 {[%clk 0:00:09.7]} 44... c2 {[%clk 0:00:29.9]} 45.
h8=Q {[%clk 0:00:11]} 45... c1=Q+ {[%clk 0:00:31.2]} 46. Kf5 {[%clk 0:00:11.7]}
46... Qc5+ {[%clk 0:00:29.1]} 47. Ke4 {[%clk 0:00:10.7]} 47... Qc4+ {[%clk
0:00:26.2]} 48. Kf5 {[%clk 0:00:11.6]} 48... Qd3+ {[%clk 0:00:25.8]} 49. Ke6
{[%clk 0:00:11.5]} 49... Kxa3 {[%clk 0:00:20.3]} 50. Qa1+ {[%clk 0:00:11.5]}
50... Kb4 {[%clk 0:00:21.3]} 51. Qe1+ {[%clk 0:00:12.1]} 51... Qc3 {[%clk
0:00:20.7]} 52. Qg1 {[%clk 0:00:08.7]} 52... Qc6+ {[%clk 0:00:19.9]} 53. Kf7
{[%clk 0:00:09.1]} 53... Qd5+ {[%clk 0:00:20.1]} 54. Ke8 {[%clk 0:00:09.7]}
54... Qe5+ {[%clk 0:00:16.4]} 55. Kd7 {[%clk 0:00:09.6]} 55... a4 {[%clk
0:00:14.2]} 56. Kc6 {[%clk 0:00:07.3]} 56... Qe6+ {[%clk 0:00:09.5]} 57. Kb7
{[%clk 0:00:07.3]} 57... Qd5+ {[%clk 0:00:08.7]} 58. Ka6 {[%clk 0:00:06.8]}
58... a3 {[%clk 0:00:05.8]} 59. Qb1+ {[%clk 0:00:06.3]} 59... Ka4 {[%clk
0:00:07.1]} 60. Qc2+ {[%clk 0:00:06.1]} 60... Kb4 {[%clk 0:00:06.5]} 61. Qb1+
{[%clk 0:00:06.9]} 61... Qb3 {[%clk 0:00:07.5]} 62. Qe4+ {[%clk 0:00:07.3]}
62... Kc3 {[%clk 0:00:08.5]} 63. Qe5+ {[%clk 0:00:06.2]} 63... Kc2 {[%clk
0:00:09.3]} 64. Qe2+ {[%clk 0:00:06.9]} 64... Kb1 {[%clk 0:00:10.4]} 65. Qe1+
{[%clk 0:00:07.8]} 65... Kb2 {[%clk 0:00:11.6]} 66. Qd2+ {[%clk 0:00:07.8]}
66... Ka1 {[%clk 0:00:11.6]} 67. Qe1+ {[%clk 0:00:07.6]} 67... Qb1 {[%clk
0:00:08.4]} 68. Qe5+ {[%clk 0:00:08.2]} 68... Ka2 {[%clk 0:00:07.8]} 69. Qd5+
{[%clk 0:00:08.1]} 69... Qb3 {[%clk 0:00:09.2]} 70. Qd2+ {[%clk 0:00:08.6]}
70... Kb1 {[%clk 0:00:10.7]} 71. Qe1+ {[%clk 0:00:09.4]} 71... Kc2 {[%clk
0:00:12.1]} 72. Qe2+ {[%clk 0:00:10.2]} 72... Kc1 {[%clk 0:00:12.7]} 73. Qe1+
{[%clk 0:00:10.2]} 73... Kb2 {[%clk 0:00:06.6]} 74. Qe2+ {[%clk 0:00:08.6]}
74... Qc2 {[%clk 0:00:05]} 75. Qxb5+ {[%clk 0:00:08.8]} 75... Kc1 {[%clk
0:00:04.9]} 76. Qf1+ {[%clk 0:00:09.1]} 76... Qd1 {[%clk 0:00:05.7]} 77. Qc4+
{[%clk 0:00:09.7]} 77... Kb2 {[%clk 0:00:07]} 78. Qb4+ {[%clk 0:00:09.8]} 78...
Qb3 {[%clk 0:00:07.9]} 79. Qd2+ {[%clk 0:00:10.4]} 79... Qc2 {[%clk 0:00:08.8]}
80. Qd4+ {[%clk 0:00:08.6]} 80... Ka2 {[%clk 0:00:06.7]} 81. Qd5+ {[%clk
0:00:09]} 81... Kb1 {[%clk 0:00:06]} 82. Qh1+ {[%clk 0:00:08.6]} 82... Kb2
{[%clk 0:00:04.9]} 83. Qh8+ {[%clk 0:00:09.1]} 83... Qc3 {[%clk 0:00:05.8]} 84.
Qh2+ {[%clk 0:00:08.6]} 84... Kb3 {[%clk 0:00:07.1]} 85. Qb8+ {[%clk 0:00:09.1]}
85... Kc2 {[%clk 0:00:05]} 86. Qh2+ {[%clk 0:00:09.3]} 86... Qd2 {[%clk
0:00:06]} 87. Qc7+ {[%clk 0:00:09.5]} 87... Kb1 {[%clk 0:00:05.2]} 88. Qb7+
{[%clk 0:00:09.2]} 88... Kc1 {[%clk 0:00:05.7]} 89. Qh1+ {[%clk 0:00:09.2]}
89... Qd1 {[%clk 0:00:06.8]} 90. Qc6+ {[%clk 0:00:09.7]} 90... Kb1 {[%clk
0:00:07.7]} 91. Qb5+ {[%clk 0:00:09.5]} 91... Ka2 {[%clk 0:00:09]} 92. Qc4+
{[%clk 0:00:09.9]} 92... Kb2 {[%clk 0:00:10.3]} 93. Qb4+ {[%clk 0:00:09.7]}
93... Qb3 {[%clk 0:00:11.9]} 94. Qd2+ {[%clk 0:00:10.2]} 94... Ka1 {[%clk
0:00:13.8]} 95. Qc1+ {[%clk 0:00:10.2]} 95... Ka2 {[%clk 0:00:15.1]} 96. Qd2+
{[%clk 0:00:11.2]} 96... Qb2 {[%clk 0:00:17]} 97. Qd5+ {[%clk 0:00:12.3]} 97...
Kb1 {[%clk 0:00:18.4]} 98. Qd1+ {[%clk 0:00:12.6]} 98... Qc1 {[%clk 0:00:19.7]}
99. Qd3+ {[%clk 0:00:11.6]} 99... Kb2 {[%clk 0:00:12.4]} 100. Qd4+ {[%clk
0:00:12.3]} 100... Qc3 {[%clk 0:00:11.9]} 101. Qf2+ {[%clk 0:00:13]} 101... Kb3
{[%clk 0:00:12]} 102. Qf7+ {[%clk 0:00:13.1]} 102... Qc4+ {[%clk 0:00:12.8]} 0-1

[Event "GrandPrix_30.05"]
[Site "Chess.com"]
[Date "2020.05.30"]
[Round "3"]
[White "Pash2015"]
[Black "Natalya_Buksa"]
[Result "1/2-1/2"]
[WhiteElo "2202"]
[BlackElo "2075"]
[TimeControl "600+2"]
[EndTime "9:28:41 PDT"]
[Termination "Game drawn by agreement"]

1. e4 {[%clk 0:10:01.9]} 1... c5 {[%clk 0:09:51.6]} 2. d4 {[%clk 0:10:03]} 2...
cxd4 {[%clk 0:09:51]} 3. Nf3 {[%clk 0:10:04.4]} 3... Nc6 {[%clk 0:09:32.4]} 4.
Bc4 {[%clk 0:10:02.4]} 4... e6 {[%clk 0:09:27.9]} 5. O-O {[%clk 0:10:02.3]} 5...
d6 {[%clk 0:09:27.1]} 6. Qe2 {[%clk 0:10:00.7]} 6... Nf6 {[%clk 0:09:27.6]} 7.
Rd1 {[%clk 0:09:40.5]} 7... Be7 {[%clk 0:09:26.7]} 8. c3 {[%clk 0:09:39.6]} 8...
d3 {[%clk 0:09:24.2]} 9. Bxd3 {[%clk 0:09:39.2]} 9... Qc7 {[%clk 0:09:22.1]} 10.
c4 {[%clk 0:09:38.6]} 10... O-O {[%clk 0:09:22.4]} 11. Nc3 {[%clk 0:09:37.9]}
11... a6 {[%clk 0:09:22.4]} 12. h3 {[%clk 0:09:39]} 12... Ne5 {[%clk 0:09:21.9]}
13. Bf4 {[%clk 0:09:37]} 13... Bd7 {[%clk 0:08:50.4]} 14. Rac1 {[%clk
0:09:19.3]} 14... b6 {[%clk 0:08:26.8]} 15. b3 {[%clk 0:09:12.3]} 15... Rfd8
{[%clk 0:08:13.3]} 16. Qe3 {[%clk 0:09:07.4]} 16... Bc6 {[%clk 0:07:58.3]} 17.
Nd5 {[%clk 0:08:58.6]} 17... Nxf3+ {[%clk 0:07:08.6]} 18. gxf3 {[%clk 0:08:23]}
18... Bxd5 {[%clk 0:06:51.6]} 19. cxd5 {[%clk 0:08:10.7]} 19... Qb7 {[%clk
0:06:52.4]} 20. dxe6 {[%clk 0:07:50.8]} 20... fxe6 {[%clk 0:06:53.1]} 21. Bc4
{[%clk 0:07:42.9]} 21... d5 {[%clk 0:06:30]} 22. exd5 {[%clk 0:07:01.3]} 22...
exd5 {[%clk 0:06:31]} 23. Qe6+ {[%clk 0:06:31.6]} 23... Kh8 {[%clk 0:06:30.4]}
24. Bxa6 {[%clk 0:06:17.6]} 24... Qxa6 {[%clk 0:05:54.7]} 25. Qxe7 {[%clk
0:06:07.3]} 25... Re8 {[%clk 0:05:49.9]} 26. Qb4 {[%clk 0:06:01.2]} 26... Qe2
{[%clk 0:05:22.9]} 27. Kg2 {[%clk 0:04:55.2]} 27... Rxa2 {[%clk 0:05:15.4]} 28.
Bg3 {[%clk 0:04:53.2]} 28... Raa8 {[%clk 0:04:43.3]} 29. Qxb6 {[%clk 0:04:22.3]}
29... h6 {[%clk 0:03:56.2]} 30. Qd4 {[%clk 0:04:10.1]} 30... Qe6 {[%clk
0:03:57.2]} 31. b4 {[%clk 0:03:37.7]} 31... Rad8 {[%clk 0:03:26.9]} 32. b5
{[%clk 0:03:21.3]} 32... Nh5 {[%clk 0:03:14.8]} 33. b6 {[%clk 0:03:13.5]} 33...
Nxg3 {[%clk 0:02:43.1]} 34. fxg3 {[%clk 0:03:11.7]} 34... Qe2+ {[%clk
0:01:38.6]} 35. Qf2 {[%clk 0:03:08.7]} 35... Qa6 {[%clk 0:01:33.5]} 36. Rd2
{[%clk 0:02:32]} 36... d4 {[%clk 0:01:23.2]} 37. Rb2 {[%clk 0:02:31.3]} 37... d3
{[%clk 0:00:58.6]} 38. Rd1 {[%clk 0:01:49.9]} 38... Rb8 {[%clk 0:00:53.6]} 39.
g4 {[%clk 0:01:41]} 39... Re2 {[%clk 0:00:27.4]} 40. Rxe2 {[%clk 0:01:30.6]}
40... dxe2 {[%clk 0:00:29.3]} 41. Re1 {[%clk 0:01:28.1]} 41... Re8 {[%clk
0:00:30.5]} 42. h4 {[%clk 0:01:23.4]} 42... Qb5 {[%clk 0:00:28.9]} 43. h5 {[%clk
0:01:21.8]} 43... Re6 {[%clk 0:00:11.1]} 44. b7 {[%clk 0:01:17.2]} 44... Qxb7
{[%clk 0:00:12.2]} 45. Rxe2 {[%clk 0:01:13.8]} 45... Rxe2 {[%clk 0:00:11.9]} 46.
Qxe2 {[%clk 0:01:15.7]} 46... Qd7 {[%clk 0:00:11.9]} 47. Kf1 {[%clk 0:01:04.2]}
47... Qd4 {[%clk 0:00:12]} 48. Kg2 {[%clk 0:01:03.8]} 48... Qc5 {[%clk
0:00:10.6]} 49. Qf2 {[%clk 0:00:57.6]} 49... Qc3 {[%clk 0:00:11.1]} 50. Kg3
{[%clk 0:00:51.5]} 50... Qd3 {[%clk 0:00:10.3]} 51. Qc5 {[%clk 0:00:49]} 51...
Qf1 {[%clk 0:00:05.9]} 52. Qe3 {[%clk 0:00:46.6]} 52... Qd1 {[%clk 0:00:03.9]}
53. Qe8+ {[%clk 0:00:40]} 53... Kh7 {[%clk 0:00:04.5]} 54. Qe4+ {[%clk
0:00:41.9]} 54... Kh8 {[%clk 0:00:05.7]} 55. Kf2 {[%clk 0:00:36.8]} 55... Qd2+
{[%clk 0:00:03.7]} 56. Qe2 {[%clk 0:00:37.5]} 56... Qd4+ {[%clk 0:00:04.8]} 57.
Ke1 {[%clk 0:00:31.7]} 57... Qc3+ {[%clk 0:00:05.8]} 58. Kd1 {[%clk 0:00:27.6]}
58... Qd4+ {[%clk 0:00:06.8]} 59. Kc2 {[%clk 0:00:23.5]} 59... Qc5+ {[%clk
0:00:08]} 60. Kd3 {[%clk 0:00:22.7]} 60... Qd5+ {[%clk 0:00:09.1]} 61. Ke3
{[%clk 0:00:22]} 61... Qe5+ {[%clk 0:00:10.3]} 62. Kf2 {[%clk 0:00:22.5]} 62...
Qh2+ {[%clk 0:00:11.8]} 63. Ke1 {[%clk 0:00:22.8]} 63... Qg1+ {[%clk 0:00:13]}
64. Kd2 {[%clk 0:00:23.1]} 64... Qd4+ {[%clk 0:00:14.5]} 65. Qd3 {[%clk
0:00:23.3]} 65... Qf2+ {[%clk 0:00:15.8]} 66. Kc3 {[%clk 0:00:24.4]} 66... Qc5+
{[%clk 0:00:16.9]} 67. Kb3 {[%clk 0:00:25.1]} 67... Qb6+ {[%clk 0:00:14.6]} 68.
Kc4 {[%clk 0:00:25.9]} 68... Qc6+ {[%clk 0:00:15.8]} 69. Kd4 {[%clk 0:00:26.8]}
69... Qd6+ {[%clk 0:00:17.1]} 70. Ke4 {[%clk 0:00:28.1]} 70... Qe6+ {[%clk
0:00:18.4]} 71. Kf4 {[%clk 0:00:27.8]} 71... Qf6+ {[%clk 0:00:19.7]} 72. Qf5
{[%clk 0:00:28.6]} 72... Qd6+ {[%clk 0:00:21.3]} 73. Ke4 {[%clk 0:00:29.2]}
73... Qb4+ {[%clk 0:00:21.4]} 74. Ke5 {[%clk 0:00:30.3]} 74... Qc3+ {[%clk
0:00:22.6]} 75. Ke6 {[%clk 0:00:31]} 75... Qc6+ {[%clk 0:00:21.7]} 76. Ke7
{[%clk 0:00:31.8]} 76... Qc7+ {[%clk 0:00:22.3]} 77. Ke8 {[%clk 0:00:32.1]}
77... Qc6+ {[%clk 0:00:18.3]} 78. Kd8 {[%clk 0:00:32.6]} 78... Qa8+ {[%clk
0:00:17.6]} 79. Kc7 {[%clk 0:00:28.2]} 79... Qa7+ {[%clk 0:00:18.3]} 80. Kd6
{[%clk 0:00:25.5]} 80... Qb6+ {[%clk 0:00:19.4]} 81. Ke5 {[%clk 0:00:25.7]}
81... Qc7+ {[%clk 0:00:20.5]} 82. Ke4 {[%clk 0:00:25.2]} 82... Qc2+ {[%clk
0:00:21.2]} 83. Kf4 {[%clk 0:00:25.2]} 83... Qd2+ {[%clk 0:00:22.1]} 84. Kg3
{[%clk 0:00:22.6]} 84... Qe1+ {[%clk 0:00:23]} 85. Kf4 {[%clk 0:00:22.9]} 85...
Qd2+ {[%clk 0:00:24.2]} 86. Ke4 {[%clk 0:00:22.7]} 86... Qc2+ {[%clk 0:00:24.9]}
87. Ke3 {[%clk 0:00:23.4]} 87... Qc1+ {[%clk 0:00:25.8]} 88. Ke2 {[%clk
0:00:22.8]} 88... Qb2+ {[%clk 0:00:26.8]} 89. Kf1 {[%clk 0:00:21.1]} 89... Qc1+
{[%clk 0:00:27.8]} 90. Kg2 {[%clk 0:00:21.6]} 90... Qd2+ {[%clk 0:00:29]} 91.
Kh3 {[%clk 0:00:22.6]} 91... Qe1 {[%clk 0:00:27.8]} 92. Qc8+ {[%clk 0:00:22.4]}
92... Kh7 {[%clk 0:00:27.7]} 93. Qc2+ {[%clk 0:00:24.3]} 93... Kh8 {[%clk
0:00:27.5]} 94. Qg2 {[%clk 0:00:26.2]} 94... Qe3 {[%clk 0:00:24.3]} 95. Kg3
{[%clk 0:00:25.2]} 95... Qe5+ {[%clk 0:00:23.1]} 96. f4 {[%clk 0:00:25.9]} 96...
Qe3+ {[%clk 0:00:24.5]} 97. Qf3 {[%clk 0:00:26.9]} 97... Qe1+ {[%clk 0:00:24.1]}
98. Kh3 {[%clk 0:00:27.8]} 98... Qd2 {[%clk 0:00:23.4]} 99. Qg3 {[%clk
0:00:27.3]} 99... Qd1 {[%clk 0:00:19.5]} 100. Qf2 {[%clk 0:00:26.8]} 100... Qd3+
{[%clk 0:00:18.5]} 101. Kh4 {[%clk 0:00:27.3]} 101... Qd5 {[%clk 0:00:18.3]}
102. Qe1 {[%clk 0:00:24.5]} 102... Qf3 {[%clk 0:00:16.6]} 103. Qe8+ {[%clk
0:00:19.8]} 103... Kh7 {[%clk 0:00:17.8]} 104. Qg6+ {[%clk 0:00:19.9]} 104...
Kh8 {[%clk 0:00:19.1]} 105. Qd6 {[%clk 0:00:18.7]} 105... Qf2+ {[%clk
0:00:19.5]} 106. Kh3 {[%clk 0:00:19.5]} 106... Qf3+ {[%clk 0:00:20.8]} 107. Kh2
{[%clk 0:00:20.7]} 107... Qf2+ {[%clk 0:00:22.2]} 108. Kh1 {[%clk 0:00:21.4]}
108... Qf1+ {[%clk 0:00:23.5]} 1/2-1/2

[Event "GrandPrix_30.05"]
[Site "Chess.com"]
[Date "2020.05.30"]
[Round "4"]
[White "AnotherGrumpy"]
[Black "VSanduleac"]
[Result "0-1"]
[WhiteElo "2002"]
[BlackElo "2287"]
[TimeControl "600+2"]
[EndTime "9:37:35 PDT"]
[Termination "VSanduleac won by resignation"]

1. d4 {[%clk 0:07:54.3]} 1... d6 {[%clk 0:09:24]} 2. c4 {[%clk 0:07:54.6]} 2...
e5 {[%clk 0:09:24.2]} 3. Nc3 {[%clk 0:07:51.6]} 3... exd4 {[%clk 0:09:23.7]} 4.
Qxd4 {[%clk 0:07:53.5]} 4... Nc6 {[%clk 0:09:24.6]} 5. Qe3+ {[%clk 0:07:43.9]}
5... Be6 {[%clk 0:09:21.8]} 6. Nf3 {[%clk 0:07:42]} 6... Be7 {[%clk 0:09:21.1]}
7. Nd5 {[%clk 0:07:34.5]} 7... Nf6 {[%clk 0:09:15.1]} 8. Nxe7 {[%clk 0:07:32.4]}
8... Qxe7 {[%clk 0:09:14.9]} 9. b3 {[%clk 0:07:30.3]} 9... d5 {[%clk 0:09:14.6]}
10. cxd5 {[%clk 0:07:26.1]} 10... Nxd5 {[%clk 0:09:14.5]} 11. Qd2 {[%clk
0:07:19.2]} 11... O-O-O {[%clk 0:09:13.9]} 12. Bb2 {[%clk 0:07:15.2]} 12... Ndb4
{[%clk 0:09:12.3]} 0-1

[Event "GrandPrix_30.05"]
[Site "Chess.com"]
[Date "2020.05.30"]
[Round "4"]
[White "Kopytkin"]
[Black "cantdefyme"]
[Result "1-0"]
[WhiteElo "2088"]
[BlackElo "1927"]
[TimeControl "600+2"]
[EndTime "9:37:38 PDT"]
[Termination "Kopytkin won by resignation"]

1. e4 {[%clk 0:09:58.9]} 1... c5 {[%clk 0:10:00.8]} 2. d4 {[%clk 0:09:59]} 2...
cxd4 {[%clk 0:10:01.4]} 3. c3 {[%clk 0:09:59.8]} 3... dxc3 {[%clk 0:10:02]} 4.
Nxc3 {[%clk 0:10:00.5]} 4... d6 {[%clk 0:10:03.3]} 5. Nf3 {[%clk 0:09:56.1]}
5... Nc6 {[%clk 0:10:04.1]} 6. Bc4 {[%clk 0:09:57]} 6... a6 {[%clk 0:10:05.1]}
7. O-O {[%clk 0:09:54.4]} 7... Nf6 {[%clk 0:10:06.1]} 8. e5 {[%clk 0:09:53.7]}
8... dxe5 {[%clk 0:10:06.3]} 9. Qxd8+ {[%clk 0:09:53.7]} 9... Nxd8 {[%clk
0:10:07.5]} 10. Nxe5 {[%clk 0:09:54.8]} 10... Be6 {[%clk 0:10:08.4]} 11. Be2
{[%clk 0:09:41.2]} 11... g6 {[%clk 0:10:03]} 12. Bf3 {[%clk 0:09:40.8]} 12...
Bg7 {[%clk 0:09:58.4]} 13. Bf4 {[%clk 0:09:25.1]} 13... O-O {[%clk 0:08:19.9]}
14. Rfd1 {[%clk 0:09:23.8]} 14... Nh5 {[%clk 0:08:17.6]} 15. Bxh5 {[%clk
0:09:20.7]} 15... gxh5 {[%clk 0:08:18.5]} 16. Nd7 {[%clk 0:09:12.9]} 16... Re8
{[%clk 0:06:40.2]} 17. Nb6 {[%clk 0:09:04.2]} 17... Ra7 {[%clk 0:06:34.8]} 18.
Bb8 {[%clk 0:08:57]} 1-0

[Event "GrandPrix_30.05"]
[Site "Chess.com"]
[Date "2020.05.30"]
[Round "4"]
[White "PeshkaTheGreat"]
[Black "Lavrov_Maxim"]
[Result "1/2-1/2"]
[WhiteElo "2142"]
[BlackElo "2268"]
[TimeControl "600+2"]
[EndTime "9:38:55 PDT"]
[Termination "Game drawn by agreement"]

1. e4 {[%clk 0:10:01.8]} 1... e5 {[%clk 0:10:00.2]} 2. Nf3 {[%clk 0:09:59.8]}
2... Nc6 {[%clk 0:10:00.7]} 3. Bc4 {[%clk 0:09:58.1]} 3... Nf6 {[%clk
0:10:00.6]} 4. d3 {[%clk 0:09:57.9]} 4... h6 {[%clk 0:10:00.9]} 5. O-O {[%clk
0:09:55]} 5... d6 {[%clk 0:10:01.8]} 6. c3 {[%clk 0:09:55.5]} 6... g6 {[%clk
0:10:02.5]} 7. a4 {[%clk 0:09:50.6]} 7... Bg7 {[%clk 0:10:01.6]} 8. Nbd2 {[%clk
0:09:47.1]} 8... O-O {[%clk 0:10:00.9]} 9. Re1 {[%clk 0:09:45.5]} 9... d5 {[%clk
0:09:47.6]} 10. Bb5 {[%clk 0:09:12]} 10... Re8 {[%clk 0:09:07.1]} 11. a5 {[%clk
0:08:48.5]} 11... a6 {[%clk 0:08:56.3]} 12. Ba4 {[%clk 0:08:46.4]} 12... dxe4
{[%clk 0:08:17]} 13. dxe4 {[%clk 0:08:30.8]} 13... Nd7 {[%clk 0:08:15.2]} 14.
Nc4 {[%clk 0:08:25.3]} 14... Qe7 {[%clk 0:07:47.8]} 15. Ne3 {[%clk 0:08:14.7]}
15... Nc5 {[%clk 0:07:41.9]} 16. Nd5 {[%clk 0:07:50.9]} 16... Qd8 {[%clk
0:07:40.3]} 17. Bc2 {[%clk 0:07:40.3]} 17... Ne7 {[%clk 0:06:55]} 1/2-1/2

[Event "GrandPrix_30.05"]
[Site "Chess.com"]
[Date "2020.05.30"]
[Round "4"]
[White "Alexander_Moskalenko"]
[Black "ploky25"]
[Result "0-1"]
[WhiteElo "2297"]
[BlackElo "2241"]
[TimeControl "600+2"]
[EndTime "9:39:52 PDT"]
[Termination "ploky25 won by resignation"]

1. b3 {[%clk 0:09:05.6]} 1... e5 {[%clk 0:09:58.8]} 2. Bb2 {[%clk 0:08:59.7]}
2... Nc6 {[%clk 0:09:59.3]} 3. e4 {[%clk 0:08:18.2]} 3... Nf6 {[%clk 0:09:55.4]}
4. f4 {[%clk 0:07:59.9]} 4... Nxe4 {[%clk 0:09:43.8]} 5. Qf3 {[%clk 0:07:49.5]}
5... d5 {[%clk 0:09:39.7]} 6. fxe5 {[%clk 0:07:18.3]} 6... Bc5 {[%clk
0:09:18.4]} 7. Bb5 {[%clk 0:06:44.8]} 7... O-O {[%clk 0:08:29.8]} 8. Bxc6 {[%clk
0:06:41.7]} 8... bxc6 {[%clk 0:08:26.4]} 9. d3 {[%clk 0:06:38.9]} 9... Nf2
{[%clk 0:07:45.1]} 10. d4 {[%clk 0:06:38]} 10... Nxh1 {[%clk 0:07:45.7]} 11.
dxc5 {[%clk 0:06:37.9]} 11... Qh4+ {[%clk 0:07:46.4]} 12. Kf1 {[%clk 0:06:34.7]}
12... Qxh2 {[%clk 0:07:43.2]} 13. Ne2 {[%clk 0:06:32]} 13... Ba6 {[%clk
0:07:37.3]} 14. Nd2 {[%clk 0:06:30.8]} 14... Ng3+ {[%clk 0:07:34.4]} 15. Kf2
{[%clk 0:06:25.6]} 15... Nxe2 {[%clk 0:07:27.4]} 16. Qg4 {[%clk 0:05:54.6]}
16... Qf4+ {[%clk 0:07:24.6]} 0-1

[Event "GrandPrix_30.05"]
[Site "Chess.com"]
[Date "2020.05.30"]
[Round "4"]
[White "SavelijTartakover"]
[Black "Petriashvili02"]
[Result "1/2-1/2"]
[WhiteElo "2497"]
[BlackElo "2332"]
[TimeControl "600+2"]
[EndTime "9:39:59 PDT"]
[Termination "Game drawn by agreement"]

1. d4 {[%clk 0:10:01.9]} 1... Nf6 {[%clk 0:09:55.2]} 2. c4 {[%clk 0:10:01.8]}
2... g6 {[%clk 0:09:56.5]} 3. Nc3 {[%clk 0:10:01.8]} 3... d5 {[%clk 0:09:58.1]}
4. cxd5 {[%clk 0:10:01.7]} 4... Nxd5 {[%clk 0:10:00]} 5. Bd2 {[%clk 0:10:02.1]}
5... Nb6 {[%clk 0:09:51.2]} 6. Bf4 {[%clk 0:09:57.6]} 6... Bg7 {[%clk
0:09:49.3]} 7. Nf3 {[%clk 0:09:57.6]} 7... O-O {[%clk 0:09:30.2]} 8. Be5 {[%clk
0:09:56.9]} 8... Bxe5 {[%clk 0:08:18.9]} 9. Nxe5 {[%clk 0:09:55.9]} 9... f6
{[%clk 0:08:20.5]} 10. Nf3 {[%clk 0:09:54.7]} 10... Kg7 {[%clk 0:08:01.6]} 11.
e3 {[%clk 0:09:52.8]} 11... c6 {[%clk 0:07:42.5]} 12. Be2 {[%clk 0:09:47.6]}
12... Be6 {[%clk 0:07:41.5]} 13. O-O {[%clk 0:09:44.8]} 13... N8d7 {[%clk
0:07:33.8]} 14. Qc2 {[%clk 0:09:40.5]} 14... Qc7 {[%clk 0:07:30.9]} 15. Rac1
{[%clk 0:09:35]} 15... Rad8 {[%clk 0:07:25]} 16. Rfd1 {[%clk 0:09:33.5]} 16...
Qb8 {[%clk 0:07:18.6]} 17. b3 {[%clk 0:09:22.4]} 17... Nd5 {[%clk 0:07:14]} 18.
Nxd5 {[%clk 0:09:02.6]} 18... cxd5 {[%clk 0:06:37.2]} 19. Qd2 {[%clk 0:08:44.8]}
19... Rc8 {[%clk 0:05:19.4]} 20. Qb4 {[%clk 0:08:38.7]} 20... Kf7 {[%clk
0:05:20.1]} 21. Ne1 {[%clk 0:08:08.4]} 1/2-1/2